[Event "28th Bosnjaci Open 2024"]
[Site "Bosnjaci"]
[Date "2024.01.04"]
[Round "1.10"]
[White "Kovac, Mihael"]
[Black "Zovko, Mario"]
[Result "0-1"]
[ECO "C42"]
[WhiteElo "1785"]
[BlackElo "2268"]
[Annotator "RC"]
[PlyCount "140"]
[EventDate "2024.01.02"]
[EventType "swiss"]
[EventCountry "CRO"]
[SourceTitle "playchess.com"]
[Source "ChessBase"]
[SourceQuality "1"]
[TimeControl "5400+30"]

1. e4 {[%emt 0:00:04]} e5 {[%emt 0:01:51]} 2. Nf3 {[%emt 0:00:10]} Nf6 {[%emt 0:00:05]} 3. Nc3 {[%emt 0:01:52]} Bb4 {[%emt 0:00:05]} 4. Nxe5 {[%emt 0:04:11]} O-O {[%emt 0:00:38]} 5. Bc4 {[%emt 0:04:54]} Qe7 {[%emt 0:04:01]} 6. Nf3 {[%emt 0:07:59]} Bxc3 {[%emt 0:10:10]} 7. dxc3 {[%emt 0:04:37]} Qxe4+ {[%emt 0:00:10]} 8. Qe2 {[%emt 0:01:53]} Qc6 {[%emt 0:00:06]} 9. O-O {[%emt 0:04:16]} d5 {[%emt 0:02:27]} 10. Bb5 {[%emt 0:03:03]} Qd6 {[%emt 0:02:57]} 11. h3 {[%emt 0:06:37]} Bf5 {[%emt 0:05:31]} 12. Be3 {[%emt 0:09:33]} c6 {[%emt 0:07:32]} 13. Bd3 {[%emt 0:01:24]} Bg6 {[%emt 0:04:56]} 14. Nh4 {[%emt 0:12:00]} Re8 {[%emt 0:08:35]} 15. Nxg6 {[%emt 0:05:24]} hxg6 {[%emt 0:02:54]} 16. Rfe1 {[%emt 0:10:21]} Nbd7 {[%emt 0:01:28]} 17. Qd2 {[%emt 0:00:50]} Nc5 {[%emt 0:05:54]} 18. Bxc5 {[%emt 0:05:31]} Qxc5 {[%emt 0:00:07]} 19. Rxe8+ {[%emt 0:01:17]} Rxe8 {[%emt 0:01:07]} 20. Re1 {[%emt 0:00:02]} Rxe1+ {[%emt 0:03:15]} 21. Qxe1 {[%emt 0:00:00]} Qd6 {[%emt 0:00:02]} 22. Qe3 {[%emt 0:03:29]} c5 {[%emt 0:03:10]} 23. c4 {[%emt 0:05:42]} d4 {[%emt 0:03:02]} 24. Qf3 {[%emt 0:00:04]} Qe7 {[%emt 0:00:06]} 25. Kf1 {[%emt 0:00:23]} Qc7 {[%emt 0:03:38]} 26. Be4 {[%emt 0:04:11]} Qa5 {[%emt 0:03:59]} 27. Bxb7 {[%emt 0:02:52]} Qxa2 {[%emt 0:00:38]} 28. Qb3 {[%emt 0:01:16]} Qa5 {[%emt 0:05:11]} 29. Ke2 {[%emt 0:00:21]} Qc7 {[%emt 0:07:05]} 30. Bf3 {[%emt 0:00:40]} Qe5+ {[%emt 0:02:06]} 31. Kd1 {[%emt 0:00:15]} Qc7 {[%emt 0:05:33]} 32. Qb7 {[%emt 0:00:46]} Qa5 {[%emt 0:00:43]} 33. Qb5 {[%emt 0:00:30]} Qa1+ {[%emt 0:00:33]} 34. Ke2 {[%emt 0:00:32]} Qc1 {[%emt 0:00:19]} 35. Qb3 {[%emt 0:00:30]} Kh7 {[%emt 0:00:33]} 36. Bd5 {[%emt 0:00:28]} Qf4 {[%emt 0:01:46]} 37. Qf3 {[%emt 0:00:14]} Qe5+ {[%emt 0:00:49]} 38. Kd3 {[%emt 0:00:47]} Kg8 {[%emt 0:00:21]} 39. Qg3 {[%emt 0:00:30]} Qf5+ {[%emt 0:01:35]} 40. Kd2 {[%emt 0:00:16]} Nxd5 {[%emt 0:00:08]} 41. cxd5 {[%emt 0:00:37]} Qxd5 {[%emt 0:00:09]} 42. Qb8+ {[%emt 0:00:37]} Kh7 {[%emt 0:00:06]} 43. Qxa7 {[%emt 0:00:28]} Qxg2 {[%emt 0:01:13]} 44. Qxf7 {[%emt 0:00:31]} Qxh3 {[%emt 0:00:40]} 45. Qb7 {[%emt 0:00:32]} Qf5 {[%emt 0:01:04]} 46. Qh1+ {[%emt 0:00:21]} Qh5 {[%emt 0:00:09]} 47. Qc6 {[%emt 0:00:37]} Qg5+ {[%emt 0:00:48]} 48. Kd3 {[%emt 0:00:28]} Qf5+ {[%emt 0:01:50]} 49. Ke2 {[%emt 0:00:34]} Qxc2+ {[%emt 0:00:07]} 50. Kf1 {[%emt 0:00:30]} Qd1+ {[%emt 0:00:42]} 51. Kg2 {[%emt 0:00:09]} Qg4+ {[%emt 0:00:40]} 52. Kf1 {[%emt 0:00:10]} Qh5 {[%emt 0:00:56]} 53. Qe4 {[%emt 0:01:09]} Qd1+ {[%emt 0:00:44]} 54. Kg2 {[%emt 0:00:03]} d3 {[%emt 0:00:30]} 55. b3 {[%emt 0:00:58]} Qe2 {[%emt 0:00:42]} 56. Qh4+ {[%emt 0:00:25]} Qh5 {[%emt 0:00:01]} 57. Qf4 {[%emt 0:00:19]} Qd5+ {[%emt 0:00:20]} 58. Qf3 {[%emt 0:00:25]} Qg5+ {[%emt 0:00:18]} 59. Kf1 {[%emt 0:00:33]} Qf5 {[%emt 0:01:57]} 60. Qe3 {[%emt 0:01:20]} Qd5 {[%emt 0:00:45]} 61. Qh3+ {[%emt 0:00:00]} Kg8 {[%emt 0:00:11]} 62. Qc8+ {[%emt 0:00:00]} Kf7 {[%emt 0:00:05]} 63. Qc7+ {[%emt 0:00:00]} Ke6 {[%emt 0:00:35]} 64. Qc8+ {[%emt 0:00:17]} Ke5 {[%emt 0:00:12]} 65. Qc7+ {[%emt 0:00:45]} Kf5 {[%emt 0:00:25]} 66. Qc8+ {[%emt 0:00:25]} Kg5 {[%emt 0:00:11]} 67. Qh3 {[%emt 0:01:18]} d2 {[%emt 0:00:54]} 68. Qg3+ {[%emt 0:00:39]} Kf5 {[%emt 0:00:08]} 69. Qh3+ {[%emt 0:00:16]} Kf6 {[%emt 0:00:13]} 70. Qh4+ {[%emt 0:00:30]} g5 {[%emt 0:00:07]} 0-1

[Event "28th Bosnjaci Open 2024"]
[Site "Bosnjaci"]
[Date "2024.01.03"]
[Round "1.11"]
[White "Hadzovic, Amir"]
[Black "Mikic, Ivana"]
[Result "*"]
[ECO "A45"]
[WhiteElo "2307"]
[BlackElo "1811"]
[Annotator "RC"]
[PlyCount "26"]
[EventDate "2024.01.02"]
[EventType "swiss"]
[EventCountry "CRO"]
[SourceTitle "playchess.com"]
[Source "ChessBase"]
[SourceQuality "1"]
[TimeControl "5400+30"]

1. d4 {[%emt 0:00:03]} Nf6 {[%emt 0:00:09]} 2. Bg5 {[%emt 0:00:18]} d6 {[%emt 0:00:34]} 3. Bxf6 {[%emt 0:00:11]} exf6 {[%emt 0:00:25]} 4. e3 {[%emt 0:00:25]} Be7 {[%emt 0:00:08]} 5. g3 {[%emt 0:00:34]} Nd7 {[%emt 0:00:20]} 6. Bg2 {[%emt 0:00:14]} c6 {[%emt 0:00:27]} 7. Ne2 {[%emt 0:02:02]} O-O {[%emt 1:31:57]} 8. c4 {[%emt 0:00:55]} Qb6 {[%emt 0:05:33]} 9. Qc2 {[%emt 0:02:42]} Re8 {[%emt 1:19:41]} 10. Nbc3 {[%emt 0:01:00]} Nf8 {[%emt 0:02:17]} 11. O-O {[%emt 0:01:59]} Ng6 {[%emt 0:16:12]} 12. Rab1 {[%emt 0:07:07]} Qa5 {[%emt 0:06:07]} 13. b4 {[%emt 0:01:21]} Qh5 {[%emt 0:01:35]} *

[Event "28th Bosnjaci Open 2024"]
[Site "Bosnjaci"]
[Date "2024.01.03"]
[Round "1.11"]
[White "Alimpic, Aleksa"]
[Black "Kajic, Josip"]
[Result "1-0"]
[ECO "A45"]
[WhiteElo "2282"]
[BlackElo "1788"]
[Annotator "RC"]
[PlyCount "95"]
[EventDate "2024.01.02"]
[EventType "swiss"]
[EventCountry "CRO"]
[SourceTitle "playchess.com"]
[Source "ChessBase"]
[SourceQuality "1"]
[TimeControl "5400+30"]

1. d4 {[%emt 0:00:03]} Nf6 {[%emt 0:00:09]} 2. Bg5 {[%emt 0:00:18]} d6 {[%emt 0:00:34]} 3. Bxf6 {[%emt 0:00:11]} exf6 {[%emt 0:00:25]} 4. e3 {[%emt 0:00:25]} Be7 {[%emt 0:00:08]} 5. g3 {[%emt 0:00:34]} Nd7 {[%emt 0:00:20]} 6. Bg2 {[%emt 0:00:14]} c6 {[%emt 0:00:27]} 7. Ne2 {[%emt 0:02:02]} O-O {[%emt 0:07:43]} 8. c4 {[%emt 0:00:55]} Qb6 {[%emt 0:05:33]} 9. Qc2 {[%emt 0:02:42]} Re8 {[%emt 0:00:30]} 10. Nbc3 {[%emt 0:01:00]} Nf8 {[%emt 0:02:17]} 11. O-O {[%emt 0:01:59]} Ng6 {[%emt 0:16:12]} 12. Rab1 {[%emt 0:07:07]} Qa5 {[%emt 0:06:07]} 13. b4 {[%emt 0:01:21]} Qh5 {[%emt 0:01:35]} 14. b5 {[%emt 0:06:55]} Bf5 {[%emt 0:23:12]} 15. Be4 {[%emt 0:01:26]} Bxe4 {[%emt 0:00:22]} 16. Qxe4 {[%emt 0:00:12]} Bf8 {[%emt 0:00:26]} 17. Qg2 {[%emt 0:00:50]} Rac8 {[%emt 0:05:28]} 18. a4 {[%emt 0:04:59]} f5 {[%emt 0:03:03]} 19. a5 {[%emt 0:05:38]} f4 {[%emt 0:05:07]} 20. Nxf4 {[%emt 0:05:28]} Nxf4 {[%emt 0:00:09]} 21. exf4 {[%emt 0:00:06]} Qf5 {[%emt 0:05:39]} 22. Qf3 {[%emt 0:04:36]} g5 {[%emt 0:00:05]} 23. Qh5 {[%emt 0:05:22]} Bg7 {[%emt 0:03:13]} 24. Rfd1 {[%emt 0:01:03]} Qc2 {[%emt 0:03:20]} 25. Rbc1 {[%emt 0:06:10]} Qb3 {[%emt 0:00:07]} 26. Qxg5 {[%emt 0:02:38]} Qxc4 {[%emt 0:06:41]} 27. Ne4 {[%emt 0:07:32]} Qe6 {[%emt 0:00:07]} 28. Re1 {[%emt 0:00:05]} cxb5 {[%emt 0:02:30]} 29. Rxc8 {[%emt 0:08:49]} Rxc8 {[%emt 0:00:17]} 30. f5 {[%emt 0:00:12]} Qh6 {[%emt 0:00:44]} 31. Qxh6 {[%emt 0:01:46]} Bxh6 {[%emt 0:00:08]} 32. Nxd6 {[%emt 0:00:06]} Rc1 {[%emt 0:03:52]} 33. Rxc1 {[%emt 0:00:15]} Bxc1 {[%emt 0:00:00]} 34. Nxb5 {[%emt 0:00:04]} Bd2 {[%emt 0:00:00]} 35. Nxa7 {[%emt 0:00:23]} Bxa5 {[%emt 0:00:00]} 36. Kg2 {[%emt 0:02:45]} Kf8 {[%emt 0:00:00]} 37. Kf3 {[%emt 0:00:23]} Ke7 {[%emt 0:00:00]} 38. Nb5 {[%emt 0:00:27]} Kd7 {[%emt 0:00:00]} 39. d5 {[%emt 0:00:07]} f6 {[%emt 0:00:00]} 40. Kg4 {[%emt 0:00:47]} Bb6 {[%emt 0:00:00]} 41. f4 {[%emt 0:01:55]} Bc5 {[%emt 0:00:00]} 42. Kh5 {[%emt 0:03:34]} Bg1 {[%emt 0:00:00]} 43. h4 {[%emt 0:01:10]} Bf2 {[%emt 0:00:02]} 44. g4 {[%emt 0:00:25]} Bg3 {[%emt 0:00:35]} 45. g5 {[%emt 0:00:05]} Bxf4 {[%emt 0:00:22]} 46. g6 {[%emt 0:00:06]} hxg6+ {[%emt 0:00:26]} 47. fxg6 {[%emt 0:00:24]} Ke8 {[%emt 0:00:13]} 48. d6 {[%emt 0:00:07]} 1-0

[Event "28th Bosnjaci Open 2024"]
[Site "Bosnjaci"]
[Date "2024.01.03"]
[Round "1.12"]
[White "Logozar, Antun"]
[Black "Sajin, Mirko"]
[Result "0-1"]
[ECO "B34"]
[WhiteElo "1802"]
[BlackElo "2299"]
[Annotator "RC"]
[PlyCount "130"]
[EventDate "2024.01.02"]
[EventType "swiss"]
[EventCountry "CRO"]
[SourceTitle "playchess.com"]
[Source "ChessBase"]
[SourceQuality "1"]
[TimeControl "5400+30"]

1. e4 {[%emt 0:00:05]} c5 {[%emt 0:00:22]} 2. Nf3 {[%emt 0:00:35]} g6 {[%emt 0:00:12]} 3. d4 {[%emt 0:00:37]} cxd4 {[%emt 0:00:08]} 4. Nxd4 {[%emt 0:00:08]} Nc6 {[%emt 0:00:05]} 5. Nc3 {[%emt 0:00:24]} Bg7 {[%emt 0:00:18]} 6. Be3 {[%emt 0:00:23]} Nf6 {[%emt 0:00:07]} 7. Be2 {[%emt 0:01:00]} O-O {[%emt 0:00:38]} 8. Qd2 {[%emt 0:01:33]} d5 {[%emt 0:02:32]} 9. Nxc6 {[%emt 0:01:23]} bxc6 {[%emt 0:01:15]} 10. exd5 {[%emt 0:02:46]} Nxd5 {[%emt 0:03:45]} 11. Nxd5 {[%emt 0:07:51]} Qxd5 {[%emt 0:01:48]} 12. Qxd5 {[%emt 0:00:19]} cxd5 {[%emt 0:00:03]} 13. O-O-O {[%emt 0:27:14]} Rd8 {[%emt 0:01:39]} 14. Bf3 {[%emt 0:06:53]} Bb7 {[%emt 0:02:16]} 15. Rhe1 {[%emt 0:03:53]} e5 {[%emt 0:01:01]} 16. Bc5 {[%emt 0:09:02]} e4 {[%emt 0:03:02]} 17. Bg4 {[%emt 0:00:39]} d4 {[%emt 0:01:21]} 18. Be7 {[%emt 0:06:32]} Rd5 {[%emt 0:03:58]} 19. Kb1 {[%emt 0:12:26]} Re8 {[%emt 0:09:01]} 20. Ba3 {[%emt 0:04:18]} Ra5 {[%emt 0:03:06]} 21. Bb4 {[%emt 0:01:59]} Rd5 {[%emt 0:03:19]} 22. Be2 {[%emt 0:01:21]} Bc6 {[%emt 0:02:42]} 23. Bc4 {[%emt 0:00:37]} Rd7 {[%emt 0:02:09]} 24. c3 {[%emt 0:00:35]} Rb8 {[%emt 0:03:12]} 25. Bc5 {[%emt 0:01:07]} dxc3 {[%emt 0:01:45]} 26. Rxd7 {[%emt 0:00:17]} Rxb2+ {[%emt 0:00:43]} 27. Kc1 {[%emt 0:05:40]} Bh6+ {[%emt 0:01:32]} 28. Be3 {[%emt 0:00:09]} Bxe3+ {[%emt 0:00:05]} 29. Rxe3 {[%emt 0:00:13]} Bxd7 {[%emt 0:00:03]} 30. Rxe4 {[%emt 0:00:46]} Rxf2 {[%emt 0:00:49]} 31. Re7 {[%emt 0:00:40]} Bc6 {[%emt 0:04:45]} 32. g3 {[%emt 0:01:35]} a5 {[%emt 0:00:45]} 33. h4 {[%emt 0:00:29]} h5 {[%emt 0:00:49]} 34. Re3 {[%emt 0:00:34]} Kg7 {[%emt 0:06:55]} 35. Rxc3 {[%emt 0:00:13]} Be4 {[%emt 0:00:05]} 36. Kd1 {[%emt 0:01:18]} a4 {[%emt 0:01:51]} 37. Be2 {[%emt 0:00:52]} Rg2 {[%emt 0:04:16]} 38. Ra3 {[%emt 0:01:13]} Bc6 {[%emt 0:01:05]} 39. Rc3 {[%emt 0:00:48]} Bd7 {[%emt 0:00:42]} 40. Ra3 {[%emt 0:01:26]} Kf6 {[%emt 0:02:38]} 41. Rf3+ {[%emt 0:00:29]} Ke7 {[%emt 0:00:35]} 42. Re3+ {[%emt 0:00:23]} Kd6 {[%emt 0:00:15]} 43. Rd3+ {[%emt 0:00:05]} Kc7 {[%emt 0:00:21]} 44. Rc3+ {[%emt 0:00:56]} Kb6 {[%emt 0:00:22]} 45. Bc4 {[%emt 0:00:43]} f6 {[%emt 0:01:26]} 46. Bf7 {[%emt 0:00:21]} Bf5 {[%emt 0:00:22]} 47. Re3 {[%emt 0:00:37]} Kc5 {[%emt 0:00:48]} 48. a3 {[%emt 0:00:31]} Kd4 {[%emt 0:00:15]} 49. Re8 {[%emt 0:00:31]} Rxg3 {[%emt 0:00:07]} 50. Rd8+ {[%emt 0:00:11]} Ke5 {[%emt 0:00:09]} 51. Rd5+ {[%emt 0:00:19]} Ke4 {[%emt 0:00:19]} 52. Rd6 {[%emt 0:00:58]} Rxa3 {[%emt 0:00:48]} 53. Rxf6 {[%emt 0:00:09]} Rg3 {[%emt 0:04:19]} 54. Ra6 {[%emt 0:00:29]} Ke3 {[%emt 0:00:40]} 55. Kc1 {[%emt 0:00:36]} Rg4 {[%emt 0:00:08]} 56. Kb2 {[%emt 0:00:17]} Kf2 {[%emt 0:00:27]} 57. Kc3 {[%emt 0:00:42]} Kg3 {[%emt 0:00:06]} 58. Bc4 {[%emt 0:00:18]} Kxh4 {[%emt 0:00:10]} 59. Rxa4 {[%emt 0:00:15]} Be6 {[%emt 0:00:21]} 60. Bb5 {[%emt 0:00:29]} Rxa4 {[%emt 0:00:06]} 61. Bxa4 {[%emt 0:00:02]} Kg3 {[%emt 0:00:09]} 62. Kd4 {[%emt 0:00:21]} h4 {[%emt 0:00:05]} 63. Bc6 {[%emt 0:00:29]} h3 {[%emt 0:00:07]} 64. Ke3 {[%emt 0:00:12]} h2 {[%emt 0:00:11]} 65. Be4 {[%emt 0:00:55]} Bh3 {[%emt 0:00:05]} 0-1

[Event "28th Bosnjaci Open 2024"]
[Site "Bosnjaci"]
[Date "2024.01.03"]
[Round "1.13"]
[White "Hadzovic, Amir"]
[Black "Mikic, Ivana"]
[Result "1-0"]
[ECO "C26"]
[WhiteElo "2307"]
[BlackElo "1811"]
[Annotator "RC"]
[PlyCount "91"]
[EventDate "2024.01.02"]
[EventType "swiss"]
[EventCountry "CRO"]
[SourceTitle "playchess.com"]
[Source "ChessBase"]
[SourceQuality "1"]
[TimeControl "5400+30"]

1. e4 {[%emt 0:00:06]} e5 {[%emt 0:00:08]} 2. Nc3 {[%emt 0:00:16]} Nf6 {[%emt 0:00:09]} 3. Nf3 {[%emt 0:01:18]} Nc6 {[%emt 0:00:09]} 4. g3 {[%emt 0:00:12]} Bc5 {[%emt 0:01:12]} 5. Bg2 {[%emt 0:00:09]} O-O {[%emt 0:00:50]} 6. O-O {[%emt 0:00:10]} d6 {[%emt 0:02:44]} 7. d3 {[%emt 0:00:13]} Be6 {[%emt 0:01:27]} 8. Na4 {[%emt 0:02:29]} Nd7 {[%emt 0:01:45]} 9. Nxc5 {[%emt 0:03:30]} Nxc5 {[%emt 0:00:14]} 10. d4 {[%emt 0:02:43]} exd4 {[%emt 0:02:54]} 11. Nxd4 {[%emt 0:00:08]} Bd7 {[%emt 0:01:11]} 12. b3 {[%emt 0:04:41]} Nxd4 {[%emt 0:02:55]} 13. Qxd4 {[%emt 0:00:07]} Ne6 {[%emt 0:00:11]} 14. Qc3 {[%emt 0:01:27]} Bc6 {[%emt 0:01:09]} 15. Bb2 {[%emt 0:00:50]} Qg5 {[%emt 0:05:30]} 16. b4 {[%emt 0:09:12]} f6 {[%emt 0:04:42]} 17. f4 {[%emt 0:01:36]} Qh5 {[%emt 0:03:50]} 18. f5 {[%emt 0:15:02]} Ng5 {[%emt 0:01:53]} 19. b5 {[%emt 0:03:15]} Bd7 {[%emt 0:03:41]} 20. Rf4 {[%emt 0:03:22]} Rac8 {[%emt 0:04:12]} 21. Re1 {[%emt 0:08:34]} Qe8 {[%emt 0:02:37]} 22. Rg4 {[%emt 0:01:24]} h6 {[%emt 0:03:43]} 23. h4 {[%emt 0:01:17]} Qh5 {[%emt 0:03:23]} 24. Rf4 {[%emt 0:03:12]} Nh7 {[%emt 0:00:40]} 25. Qd4 {[%emt 0:06:20]} Kh8 {[%emt 0:07:04]} 26. Bf1 {[%emt 0:01:42]} b6 {[%emt 0:00:46]} 27. a4 {[%emt 0:01:17]} Qe8 {[%emt 0:01:36]} 28. Qd2 {[%emt 0:04:17]} Rf7 {[%emt 0:04:17]} 29. g4 {[%emt 0:01:46]} a6 {[%emt 0:02:55]} 30. bxa6 {[%emt 0:03:34]} Bxa4 {[%emt 0:00:20]} 31. Bc4 {[%emt 0:00:32]} Re7 {[%emt 0:00:16]} 32. Bd5 {[%emt 0:01:40]} Bc6 {[%emt 0:00:30]} 33. Rf2 {[%emt 0:03:05]} Bxd5 {[%emt 0:02:52]} 34. Qxd5 {[%emt 0:00:12]} Qg8 {[%emt 0:00:42]} 35. Qd3 {[%emt 0:03:04]} Qa2 {[%emt 0:01:13]} 36. Bc3 {[%emt 0:00:16]} Nf8 {[%emt 0:03:39]} 37. g5 {[%emt 0:02:34]} Nd7 {[%emt 0:00:50]} 38. Qe3 {[%emt 0:01:42]} Qxa6 {[%emt 0:11:07]} 39. gxf6 {[%emt 0:02:49]} Nxf6 {[%emt 0:03:47]} 40. Bxf6 {[%emt 0:00:09]} gxf6 {[%emt 0:00:03]} 41. Qxh6+ {[%emt 0:00:20]} Rh7 {[%emt 0:00:11]} 42. Qxf6+ {[%emt 0:00:15]} Rg7+ {[%emt 0:01:05]} 43. Rg2 {[%emt 0:00:25]} Rcg8 {[%emt 0:00:05]} 44. h5 {[%emt 0:03:04]} Kh7 {[%emt 0:00:27]} 45. Rg6 {[%emt 0:00:26]} Rxg6+ {[%emt 0:00:44]} 46. hxg6+ {[%emt 0:00:22]} 1-0

[Event "28th Bosnjaci Open 2024"]
[Site "Bosnjaci"]
[Date "2024.01.03"]
[Round "1.13"]
[White "Alimpic, Aleksa"]
[Black "Kajic, Josip"]
[Result "*"]
[ECO "C26"]
[WhiteElo "2282"]
[BlackElo "1788"]
[Annotator "RC"]
[PlyCount "34"]
[EventDate "2024.01.02"]
[EventType "swiss"]
[EventCountry "CRO"]
[SourceTitle "playchess.com"]
[Source "ChessBase"]
[SourceQuality "1"]
[TimeControl "5400+30"]

1. e4 {[%emt 0:00:06]} e5 {[%emt 0:00:08]} 2. Nc3 {[%emt 0:00:16]} Nf6 {[%emt 0:00:09]} 3. Nf3 {[%emt 0:01:18]} Nc6 {[%emt 0:00:09]} 4. g3 {[%emt 0:00:12]} Bc5 {[%emt 0:01:12]} 5. Bg2 {[%emt 0:00:09]} O-O {[%emt 0:00:50]} 6. O-O {[%emt 0:00:10]} d6 {[%emt 0:02:44]} 7. d3 {[%emt 0:00:13]} Be6 {[%emt 0:01:27]} 8. Na4 {[%emt 0:02:29]} Nd7 {[%emt 0:01:45]} 9. Nxc5 {[%emt 0:03:30]} Nxc5 {[%emt 0:00:14]} 10. d4 {[%emt 0:02:43]} exd4 {[%emt 0:02:54]} 11. Nxd4 {[%emt 0:00:08]} Bd7 {[%emt 0:01:11]} 12. b3 {[%emt 0:04:41]} Nxd4 {[%emt 1:23:47]} 13. Qxd4 {[%emt 0:00:07]} Ne6 {[%emt 0:00:11]} 14. Qc3 {[%emt 0:01:27]} Bc6 {[%emt 0:01:09]} 15. Bb2 {[%emt 0:00:50]} Qg5 {[%emt 0:05:30]} 16. b4 {[%emt 0:09:12]} f6 {[%emt 0:04:42]} 17. f4 {[%emt 0:01:36]} Qh5 {[%emt 0:03:50]} *

[Event "28th Bosnjaci Open 2024"]
[Site "Bosnjaci"]
[Date "2024.01.03"]
[Round "1.14"]
[White "Rajkovic, Mario"]
[Black "Biti, Ozren"]
[Result "0-1"]
[ECO "C41"]
[WhiteElo "1815"]
[BlackElo "2308"]
[Annotator "RC"]
[PlyCount "40"]
[EventDate "2024.01.02"]
[EventType "swiss"]
[EventCountry "CRO"]
[SourceTitle "playchess.com"]
[Source "ChessBase"]
[SourceQuality "1"]
[TimeControl "5400+30"]

1. e4 {[%emt 0:00:10]} d6 {[%emt 0:00:09]} 2. d4 {[%emt 0:00:30]} Nf6 {[%emt 0:00:06]} 3. Nc3 {[%emt 0:00:32]} e5 {[%emt 0:00:09]} 4. Nf3 {[%emt 0:04:55]} Nbd7 {[%emt 0:00:05]} 5. Bc4 {[%emt 0:04:06]} Be7 {[%emt 0:02:29]} 6. g4 {[%emt 0:03:19]} Nb6 {[%emt 0:20:27]} 7. Bb3 {[%emt 0:00:42]} Nxg4 {[%emt 0:02:04]} 8. Rg1 {[%emt 0:00:35]} exd4 {[%emt 0:10:32]} 9. Qxd4 {[%emt 0:16:32]} Bf6 {[%emt 0:02:58]} 10. Qd3 {[%emt 0:00:14]} O-O {[%emt 0:13:34]} 11. Bd2 {[%emt 0:13:52]} Qe7 {[%emt 0:06:07]} 12. Rg2 {[%emt 0:03:56]} Ne5 {[%emt 0:09:18]} 13. Nxe5 {[%emt 0:00:18]} dxe5 {[%emt 0:00:47]} 14. O-O-O {[%emt 0:00:21]} Kh8 {[%emt 0:03:38]} 15. Rdg1 {[%emt 0:10:19]} c6 {[%emt 0:02:37]} 16. Qg3 {[%emt 0:04:18]} Be6 {[%emt 0:04:11]} 17. Ne2 {[%emt 0:02:52]} Bxb3 {[%emt 0:02:59]} 18. Qxb3 {[%emt 0:05:36]} Qe6 {[%emt 0:01:34]} 19. Ng3 {[%emt 0:00:35]} Qxb3 {[%emt 0:02:01]} 20. cxb3 {[%emt 0:00:42]} g6 {[%emt 0:00:51]} 0-1

[Event "28th Bosnjaci Open 2024"]
[Site "Bosnjaci"]
[Date "2024.01.03"]
[Round "1.15"]
[White "Plenkovic, Zdenko"]
[Black "Tomljenovic, Mile"]
[Result "1-0"]
[ECO "C44"]
[WhiteElo "2335"]
[BlackElo "1816"]
[Annotator "RC"]
[PlyCount "67"]
[EventDate "2024.01.02"]
[EventType "swiss"]
[EventCountry "CRO"]
[SourceTitle "playchess.com"]
[Source "ChessBase"]
[SourceQuality "1"]
[TimeControl "5400+30"]

1. e4 {[%emt 0:00:01]} e5 {[%emt 0:00:13]} 2. Nf3 {[%emt 0:00:29]} Nc6 {[%emt 0:00:26]} 3. d3 {[%emt 0:00:09]} Nf6 {[%emt 0:00:38]} 4. Be2 {[%emt 0:00:26]} Bc5 {[%emt 0:02:45]} 5. O-O {[%emt 0:01:04]} h6 {[%emt 0:00:48]} 6. c3 {[%emt 0:00:18]} O-O {[%emt 0:00:12]} 7. b4 {[%emt 0:00:06]} Bd6 {[%emt 0:06:21]} 8. Nbd2 {[%emt 0:03:09]} b5 {[%emt 0:03:18]} 9. a4 {[%emt 0:00:51]} bxa4 {[%emt 0:02:15]} 10. b5 {[%emt 0:02:36]} Ne7 {[%emt 0:02:23]} 11. Nc4 {[%emt 0:01:28]} Ng6 {[%emt 0:00:34]} 12. Nxd6 {[%emt 0:00:11]} cxd6 {[%emt 0:00:08]} 13. c4 {[%emt 0:00:14]} Bb7 {[%emt 0:02:51]} 14. Rxa4 {[%emt 0:03:08]} a6 {[%emt 0:03:45]} 15. bxa6 {[%emt 0:00:47]} Rxa6 {[%emt 0:00:56]} 16. Rxa6 {[%emt 0:00:41]} Bxa6 {[%emt 0:00:08]} 17. Qa4 {[%emt 0:02:05]} Bb7 {[%emt 0:00:18]} 18. Qb4 {[%emt 0:01:52]} Qc7 {[%emt 0:00:32]} 19. Ba3 {[%emt 0:01:22]} Ne8 {[%emt 0:02:06]} 20. Rb1 {[%emt 0:01:13]} Bc6 {[%emt 0:00:05]} 21. g3 {[%emt 0:18:29]} f5 {[%emt 0:06:28]} 22. Nd2 {[%emt 0:00:05]} fxe4 {[%emt 0:02:38]} 23. dxe4 {[%emt 0:00:41]} Qa7 {[%emt 0:00:26]} 24. Rf1 {[%emt 0:00:07]} Qd4 {[%emt 0:01:44]} 25. Bb2 {[%emt 0:05:03]} Qa7 {[%emt 0:00:22]} 26. Qa3 {[%emt 0:04:40]} Qb6 {[%emt 0:02:47]} 27. Kg2 {[%emt 0:03:33]} Nf6 {[%emt 0:04:23]} 28. f3 {[%emt 0:00:06]} Ra8 {[%emt 0:00:24]} 29. Qc3 {[%emt 0:00:54]} Kf7 {[%emt 0:07:27]} 30. Ba3 {[%emt 0:06:57]} Ke6 {[%emt 0:05:15]} 31. Rd1 {[%emt 0:11:53]} Ba4 {[%emt 0:05:33]} 32. Rb1 {[%emt 0:00:09]} Qc6 {[%emt 0:01:26]} 33. c5 {[%emt 0:02:28]} d5 {[%emt 0:00:24]} 34. Rb6 {[%emt 0:00:07]} 1-0

[Event "28th Bosnjaci Open 2024"]
[Site "Bosnjaci"]
[Date "2024.01.03"]
[Round "1.15"]
[White "Cupic, Lovro"]
[Black "Turicar, Goran"]
[Result "*"]
[ECO "C44"]
[WhiteElo "2265"]
[BlackElo "1780"]
[Annotator "RC"]
[PlyCount "40"]
[EventDate "2024.01.02"]
[EventType "swiss"]
[EventCountry "CRO"]
[SourceTitle "playchess.com"]
[Source "ChessBase"]
[SourceQuality "1"]
[TimeControl "5400+30"]

1. e4 {[%emt 0:00:01]} e5 {[%emt 0:00:13]} 2. Nf3 {[%emt 0:00:29]} Nc6 {[%emt 0:00:26]} 3. d3 {[%emt 0:00:09]} Nf6 {[%emt 0:00:38]} 4. Be2 {[%emt 0:00:26]} Bc5 {[%emt 1:31:13]} 5. O-O {[%emt 0:01:04]} h6 {[%emt 0:00:48]} 6. c3 {[%emt 1:31:21]} O-O {[%emt 0:00:12]} 7. b4 {[%emt 0:00:06]} Bd6 {[%emt 0:06:21]} 8. Nbd2 {[%emt 0:03:09]} b5 {[%emt 0:03:18]} 9. a4 {[%emt 0:00:51]} bxa4 {[%emt 0:02:15]} 10. b5 {[%emt 0:02:36]} Ne7 {[%emt 0:02:23]} 11. Nc4 {[%emt 1:26:51]} Ng6 {[%emt 0:00:34]} 12. Nxd6 {[%emt 0:00:11]} cxd6 {[%emt 0:00:08]} 13. c4 {[%emt 0:00:14]} Bb7 {[%emt 0:02:51]} 14. Rxa4 {[%emt 0:03:08]} a6 {[%emt 0:03:45]} 15. bxa6 {[%emt 0:00:47]} Rxa6 {[%emt 0:00:56]} 16. Rxa6 {[%emt 0:00:41]} Bxa6 {[%emt 0:00:08]} 17. Qa4 {[%emt 0:02:05]} Bb7 {[%emt 0:00:18]} 18. Qb4 {[%emt 0:01:52]} Qc7 {[%emt 0:00:32]} 19. Ba3 {[%emt 0:01:22]} Ne8 {[%emt 0:02:06]} 20. Rb1 {[%emt 0:01:13]} Bc6 {[%emt 0:00:05]} *